[Event "MPL-1 Indian Chess Tour 2022"]
[Site "Online"]
[Date "2022.03.31"]
[Round "15.2"]
[White "Sadhwani, Raunak"]
[Black "Aryan Chopra"]
[Result "1/2-1/2"]
[ECO "B12"]
[WhiteElo "2616"]
[BlackElo "2585"]
[Annotator "ChessBase"]
[PlyCount "83"]
[EventDate "2022.03.30"]
[EventType "tourn"]
[EventCountry "NET"]
[SourceTitle "playchess.com"]
[Source "ChessBase"]
[SourceQuality "1"]
[TimeControl "5400+30"]

1. e4 {[%emt 1:15:40]} c6 {[%emt 1:15:40]} 2. d4 {[%emt 0:00:22]} d5 {[%emt 0:00:21]} 3. e5 {[%emt 0:00:20]} c5 {[%emt 0:00:21]} 4. Nf3 {[%emt 0:00:21]} cxd4 {[%emt 0:00:21]} 5. Qxd4 {[%emt 0:00:20]} Nc6 {[%emt 0:00:24]} 6. Qf4 {[%emt 0:00:22]} e6 {[%emt 0:00:21]} 7. Bd3 {[%emt 0:00:21]} Nb4 {[%emt 0:00:25]} 8. Nc3 {[%emt 0:00:28]} Nxd3+ {[%emt 0:00:35]} 9. cxd3 {[%emt 0:00:20]} Bd7 {[%emt 0:00:40]} 10. Bd2 {[%emt 0:00:43]} Ne7 {[%emt 0:00:57]} 11. h4 {[%emt 0:00:22]} h5 {[%emt 0:00:23]} 12. Ne2 {[%emt 0:00:24]} Nf5 {[%emt 0:00:50]} 13. Ng3 {[%emt 0:00:34]} Nxg3 {[%emt 0:01:30]} 14. Qxg3 {[%emt 0:00:20]} Bc6 {[%emt 0:03:34]} 15. Bc3 {[%emt 0:01:17]} Rh6 {[%emt 0:01:11]} 16. Qg5 {[%emt 0:02:50]} Qxg5 {[%emt 0:00:41]} 17. hxg5 {[%emt 0:00:20]} Rh8 {[%emt 0:00:22]} 18. Nd4 {[%emt 0:00:40]} Be7 {[%emt 0:01:12]} 19. f4 {[%emt 0:00:22]} Kd7 {[%emt 0:00:25]} 20. Kd2 {[%emt 0:00:27]} g6 {[%emt 0:00:54]} 21. b4 {[%emt 0:00:57]} Ba4 {[%emt 0:00:45]} 22. Rab1 {[%emt 0:00:38]} Rac8 {[%emt 0:01:14]} 23. b5 {[%emt 0:01:35]} Bc5 {[%emt 0:00:22]} 24. Ne2 {[%emt 0:00:28]} a6 {[%emt 0:01:46]} 25. bxa6 {[%emt 0:00:26]} bxa6 {[%emt 0:00:23]} 26. Bb4 {[%emt 0:02:02]} Bc2 {[%emt 0:01:55]} 27. Rb2 {[%emt 0:01:58]} Rb8 {[%emt 0:00:22]} 28. a3 {[%emt 0:01:53]} Ba4 {[%emt 0:00:23]} 29. Rhb1 {[%emt 0:00:28]} Ba7 {[%emt 0:00:26]} 30. Bc3 {[%emt 0:02:23]} Rxb2+ {[%emt 0:00:24]} 31. Rxb2 {[%emt 0:00:20]} Rb8 {[%emt 0:00:21]} 32. Rxb8 {[%emt 0:00:26]} Bxb8 {[%emt 0:00:23]} 33. Bd4 {[%emt 0:00:22]} Bc7 {[%emt 0:00:28]} 34. Nc3 {[%emt 0:00:21]} Ba5 {[%emt 0:00:31]} 35. g3 {[%emt 0:00:22]} Kc6 {[%emt 0:00:27]} 36. Kc1 {[%emt 0:00:34]} Bxc3 {[%emt 0:00:28]} 37. Bxc3 {[%emt 0:00:20]} Bb5 {[%emt 0:00:39]} 38. Kd2 {[%emt 0:00:22]} Kc5 {[%emt 0:00:24]} 39. Bb4+ {[%emt 0:00:22]} Kc6 {[%emt 0:00:21]} 40. Bc3 {[%emt 0:00:21]} Kc5 {[%emt 0:00:21]} 41. Bb4+ {[%emt 0:00:21]} Kc6 {[%emt 0:00:21]} 42. Bc3 {[%emt 0:00:20]} 1/2-1/2

[Event "MPL-1 Indian Chess Tour 2022"]
[Site "Online"]
[Date "2022.03.27"]
[Round "15.5"]
[White "Lalith Babu M R"]
[Black "Mendonca, Leon Luke"]
[Result "0-1"]
[ECO "D43"]
[WhiteElo "2563"]
[BlackElo "2536"]
[Annotator "RC"]
[PlyCount "112"]
[EventDate "2022.03.30"]
[EventType "tourn"]
[EventCountry "NET"]
[SourceTitle "playchess.com"]
[Source "ChessBase"]
[SourceQuality "1"]
[TimeControl "5400+30"]

1. d4 {[%emt 1:15:40]} d5 {[%emt 1:15:40]} 2. Nf3 {[%emt 0:00:22]} Nf6 {[%emt 0:00:22]} 3. c4 {[%emt 0:00:21]} e6 {[%emt 0:00:21]} 4. Nc3 {[%emt 0:00:22]} c6 {[%emt 0:00:21]} 5. Bg5 {[%emt 0:00:21]} h6 {[%emt 0:00:22]} 6. Bxf6 {[%emt 0:00:21]} Qxf6 {[%emt 0:00:21]} 7. e3 {[%emt 0:00:20]} g6 {[%emt 0:00:30]} 8. Be2 {[%emt 0:00:47]} Bg7 {[%emt 0:00:37]} 9. O-O {[%emt 0:00:22]} O-O {[%emt 0:00:42]} 10. b4 {[%emt 0:00:55]} dxc4 {[%emt 0:01:30]} 11. Bxc4 {[%emt 0:00:22]} Nd7 {[%emt 0:00:39]} 12. Rc1 {[%emt 0:04:47]} Rd8 {[%emt 0:04:55]} 13. Qb3 {[%emt 0:00:32]} Qe7 {[%emt 0:00:53]} 14. Rfd1 {[%emt 0:00:44]} b6 {[%emt 0:01:24]} 15. h3 {[%emt 0:04:19]} Bb7 {[%emt 0:00:43]} 16. e4 {[%emt 0:00:22]} Rab8 {[%emt 0:01:12]} 17. Be2 {[%emt 0:00:40]} c5 {[%emt 0:01:09]} 18. dxc5 {[%emt 0:00:23]} bxc5 {[%emt 0:00:26]} 19. b5 {[%emt 0:00:21]} Nb6 {[%emt 0:01:43]} 20. a4 {[%emt 0:00:37]} Rxd1+ {[%emt 0:00:29]} 21. Bxd1 {[%emt 0:00:31]} c4 {[%emt 0:00:26]} 22. Qc2 {[%emt 0:01:14]} Qb4 {[%emt 0:00:39]} 23. e5 {[%emt 0:01:17]} Bxf3 {[%emt 0:01:00]} 24. Bxf3 {[%emt 0:00:22]} Bxe5 {[%emt 0:00:23]} 25. Ne4 {[%emt 0:00:39]} Rd8 {[%emt 0:00:32]} 26. Qe2 {[%emt 0:00:51]} Qxa4 {[%emt 0:01:22]} 27. Rb1 {[%emt 0:01:42]} Qa3 {[%emt 0:00:55]} 28. Nd2 {[%emt 0:00:21]} Qc3 {[%emt 0:00:36]} 29. Ne4 {[%emt 0:00:30]} Qd3 {[%emt 0:00:37]} 30. Qe1 {[%emt 0:00:22]} Qa3 {[%emt 0:01:00]} 31. Ng5 {[%emt 0:00:57]} Qc3 {[%emt 0:00:41]} 32. Qxc3 {[%emt 0:00:29]} Bxc3 {[%emt 0:00:21]} 33. Ne4 {[%emt 0:00:21]} Bd4 {[%emt 0:00:33]} 34. Kf1 {[%emt 0:00:21]} f5 {[%emt 0:01:09]} 35. Nd2 {[%emt 0:00:26]} Bc5 {[%emt 0:00:35]} 36. Ke2 {[%emt 0:00:24]} Bxf2 {[%emt 0:01:40]} 37. Rc1 {[%emt 0:00:22]} Bd4 {[%emt 0:00:36]} 38. Nxc4 {[%emt 0:00:21]} Nxc4 {[%emt 0:00:39]} 39. Rxc4 {[%emt 0:00:22]} Bb6 {[%emt 0:00:22]} 40. Rc6 {[%emt 0:00:34]} Kf7 {[%emt 0:00:22]} 41. Ke1 {[%emt 0:00:25]} Kf6 {[%emt 0:00:34]} 42. Be2 {[%emt 0:00:22]} Ke5 {[%emt 0:00:25]} 43. g4 {[%emt 0:00:41]} Rd6 {[%emt 0:00:42]} 44. Rc8 {[%emt 0:00:22]} Kf4 {[%emt 0:00:23]} 45. Rg8 {[%emt 0:00:23]} e5 {[%emt 0:00:27]} 46. Rf8 {[%emt 0:00:28]} e4 {[%emt 0:00:25]} 47. h4 {[%emt 0:00:23]} Ke5 {[%emt 0:00:38]} 48. h5 {[%emt 0:00:21]} fxg4 {[%emt 0:01:44]} 49. Bxg4 {[%emt 0:00:24]} g5 {[%emt 0:00:24]} 50. Rf5+ {[%emt 0:00:39]} Kd4 {[%emt 0:00:21]} 51. Ke2 {[%emt 0:00:21]} Kc3 {[%emt 0:00:38]} 52. Re5 {[%emt 0:00:27]} e3 {[%emt 0:00:38]} 53. Bf3 {[%emt 0:00:58]} Rd2+ {[%emt 0:00:27]} 54. Ke1 {[%emt 0:00:21]} Rf2 {[%emt 0:00:23]} 55. Be2 {[%emt 0:00:33]} Kc2 {[%emt 0:00:41]} 56. Bd1+ {[%emt 0:01:16]} Kc1 {[%emt 0:00:23]} 0-1

[Event "MPL-1 Indian Chess Tour 2022"]
[Site "Online"]
[Date "2022.03.27"]
[Round "15.6"]
[White "Puranik, Abhimanyu"]
[Black "Ganguly, Surya Shekhar"]
[Result "0-1"]
[ECO "A18"]
[WhiteElo "2618"]
[BlackElo "2627"]
[Annotator "ChessBase"]
[PlyCount "66"]
[EventDate "2022.03.30"]
[EventType "tourn"]
[EventCountry "NET"]
[SourceTitle "playchess.com"]
[Source "ChessBase"]
[SourceQuality "1"]
[TimeControl "5400+30"]

1. c4 {[%emt 1:15:40]} Nf6 {[%emt 1:15:40]} 2. Nc3 {[%emt 0:00:23]} e6 {[%emt 0:00:22]} 3. e4 {[%emt 0:00:22]} d5 {[%emt 0:00:21]} 4. e5 {[%emt 0:00:21]} d4 {[%emt 0:00:21]} 5. exf6 {[%emt 0:00:21]} dxc3 {[%emt 0:00:20]} 6. Nf3 {[%emt 0:00:21]} cxb2 {[%emt 0:01:03]} 7. Bxb2 {[%emt 0:00:27]} gxf6 {[%emt 0:00:22]} 8. Qb3 {[%emt 0:01:15]} a5 {[%emt 0:00:50]} 9. a3 {[%emt 0:00:34]} Nc6 {[%emt 0:01:46]} 10. d4 {[%emt 0:00:26]} Bh6 {[%emt 0:01:28]} 11. Bd3 {[%emt 0:01:02]} Ne7 {[%emt 0:01:57]} 12. O-O {[%emt 0:01:19]} Ng6 {[%emt 0:00:22]} 13. Rfe1 {[%emt 0:00:37]} O-O {[%emt 0:00:31]} 14. g3 {[%emt 0:00:30]} Bd7 {[%emt 0:01:02]} 15. Rad1 {[%emt 0:00:47]} Qe8 {[%emt 0:01:02]} 16. Bc2 {[%emt 0:00:30]} b5 {[%emt 0:00:43]} 17. c5 {[%emt 0:02:37]} Qc8 {[%emt 0:00:46]} 18. d5 {[%emt 0:00:47]} e5 {[%emt 0:00:23]} 19. Qd3 {[%emt 0:00:49]} b4 {[%emt 0:00:43]} 20. Nh4 {[%emt 0:00:44]} b3 {[%emt 0:00:54]} 21. Bb1 {[%emt 0:01:35]} a4 {[%emt 0:00:30]} 22. Re4 {[%emt 0:01:09]} Bg5 {[%emt 0:00:59]} 23. Nxg6 {[%emt 0:01:40]} hxg6 {[%emt 0:00:32]} 24. f4 {[%emt 0:00:22]} exf4 {[%emt 0:01:06]} 25. gxf4 {[%emt 0:00:21]} Bh6 {[%emt 0:01:44]} 26. Qd4 {[%emt 0:01:09]} Bg7 {[%emt 0:00:52]} 27. d6 {[%emt 0:02:52]} cxd6 {[%emt 0:00:32]} 28. cxd6 {[%emt 0:00:22]} Ra5 {[%emt 0:02:52]} 29. Rc1 {[%emt 0:00:44]} Bc6 {[%emt 0:00:39]} 30. Re3 {[%emt 0:01:07]} Qd7 {[%emt 0:01:07]} 31. Qb6 {[%emt 0:00:58]} Rd5 {[%emt 0:00:49]} 32. Be4 {[%emt 0:00:48]} Qg4+ {[%emt 0:00:50]} 33. Kf1 {[%emt 0:01:29]} Bb5+ {[%emt 0:00:47]} 0-1

[Event "MPL-1 Indian Chess Tour 2022"]
[Site "Online"]
[Date "2022.03.27"]
[Round "15.7"]
[White "Sankalp Gupta"]
[Black "Harika, Dronavalli"]
[Result "0-1"]
[ECO "B06"]
[WhiteElo "2536"]
[BlackElo "2517"]
[Annotator "ChessBase"]
[PlyCount "94"]
[EventDate "2022.03.30"]
[EventType "tourn"]
[EventCountry "NET"]
[SourceTitle "playchess.com"]
[Source "ChessBase"]
[SourceQuality "1"]
[TimeControl "5400+30"]

1. e4 {[%emt 1:15:40]} g6 {[%emt 1:15:40]} 2. d4 {[%emt 0:00:22]} Bg7 {[%emt 0:00:24]} 3. Nc3 {[%emt 0:00:21]} d6 {[%emt 0:00:23]} 4. Be3 {[%emt 0:00:22]} a6 {[%emt 0:00:21]} 5. Qd2 {[%emt 0:00:21]} b5 {[%emt 0:00:30]} 6. Nce2 {[%emt 0:00:23]} Nd7 {[%emt 0:00:38]} 7. Ng3 {[%emt 0:00:25]} Bb7 {[%emt 0:00:22]} 8. a4 {[%emt 0:00:55]} h5 {[%emt 0:01:06]} 9. h4 {[%emt 0:00:27]} c5 {[%emt 0:02:15]} 10. c3 {[%emt 0:01:25]} Ngf6 {[%emt 0:01:35]} 11. f3 {[%emt 0:00:54]} bxa4 {[%emt 0:01:17]} 12. Bd3 {[%emt 0:02:33]} O-O {[%emt 0:00:49]} 13. N1e2 {[%emt 0:00:35]} cxd4 {[%emt 0:00:55]} 14. cxd4 {[%emt 0:00:20]} e5 {[%emt 0:00:21]} 15. d5 {[%emt 0:01:55]} Nc5 {[%emt 0:00:37]} 16. Bc2 {[%emt 0:00:22]} Nfd7 {[%emt 0:00:56]} 17. Bxa4 {[%emt 0:00:48]} Nxa4 {[%emt 0:00:39]} 18. Rxa4 {[%emt 0:00:20]} a5 {[%emt 0:00:22]} 19. Bh6 {[%emt 0:00:38]} Nc5 {[%emt 0:00:40]} 20. Ra3 {[%emt 0:00:40]} Bc8 {[%emt 0:03:41]} 21. Bxg7 {[%emt 0:04:35]} Kxg7 {[%emt 0:00:22]} 22. f4 {[%emt 0:00:32]} Bg4 {[%emt 0:00:53]} 23. f5 {[%emt 0:00:34]} a4 {[%emt 0:00:53]} 24. Nc3 {[%emt 0:02:05]} Kh7 {[%emt 0:01:55]} 25. Nd1 {[%emt 0:01:01]} Nb3 {[%emt 0:01:15]} 26. Qg5 {[%emt 0:01:26]} Qxg5 {[%emt 0:02:12]} 27. hxg5 {[%emt 0:00:20]} Bxd1 {[%emt 0:00:21]} 28. Kxd1 {[%emt 0:00:30]} Rfc8 {[%emt 0:00:21]} 29. Ne2 {[%emt 0:00:34]} Rc4 {[%emt 0:00:36]} 30. Nc3 {[%emt 0:00:46]} Rd4+ {[%emt 0:00:42]} 31. Ke1 {[%emt 0:01:17]} Kg7 {[%emt 0:00:56]} 32. f6+ {[%emt 0:00:30]} Kg8 {[%emt 0:00:22]} 33. g4 {[%emt 0:01:53]} hxg4 {[%emt 0:00:22]} 34. Kf2 {[%emt 0:00:47]} Nc5 {[%emt 0:00:26]} 35. Ke3 {[%emt 0:01:09]} Rb8 {[%emt 0:00:30]} 36. Ra2 {[%emt 0:00:23]} Rb3 {[%emt 0:00:25]} 37. Ke2 {[%emt 0:00:33]} Nxe4 {[%emt 0:00:25]} 38. Nxe4 {[%emt 0:00:21]} Rxe4+ {[%emt 0:00:20]} 39. Kd2 {[%emt 0:00:22]} g3 {[%emt 0:00:40]} 40. Raa1 {[%emt 0:00:22]} g2 {[%emt 0:00:38]} 41. Rhc1 {[%emt 0:00:29]} Rd4+ {[%emt 0:01:25]} 42. Ke2 {[%emt 0:00:29]} Rxb2+ {[%emt 0:00:20]} 43. Kf3 {[%emt 0:00:49]} Rd3+ {[%emt 0:00:32]} 44. Ke4 {[%emt 0:00:23]} Rh3 {[%emt 0:00:21]} 45. Rxa4 {[%emt 0:00:46]} Rh4+ {[%emt 0:00:24]} 46. Kf3 {[%emt 0:00:26]} Rxa4 {[%emt 0:00:21]} 47. Ke3 {[%emt 0:00:30]} Ra3+ {[%emt 0:00:30]} 0-1